[Event "Late-Titled-Tuesday-Blitz-October-03-2023"]
[Site "Chess.com"]
[Date "2023.10.03"]
[Round "4"]
[White "Grischuk"]
[Black "Byniolus"]
[Result "1-0"]
[WhiteElo "3008"]
[BlackElo "2756"]
[TimeControl "180+1"]
[EndTime "14:39:50 PDT"]
[Termination "Grischuk won by checkmate"]

1. d4 {[%clk 0:03:00.9]} 1... d6 {[%clk 0:02:59.1]} 2. e4 {[%clk 0:03:00.5]}
2... Nf6 {[%clk 0:02:59.1]} 3. Nc3 {[%clk 0:02:59.3]} 3... c6 {[%clk 0:02:59.6]}
4. f4 {[%clk 0:02:56.4]} 4... Qb6 {[%clk 0:02:59.4]} 5. Nf3 {[%clk 0:02:48.8]}
5... Bg4 {[%clk 0:02:59.2]} 6. e5 {[%clk 0:02:31.1]} 6... Nd5 {[%clk 0:02:58.8]}
7. Nxd5 {[%clk 0:02:31.6]} 7... cxd5 {[%clk 0:02:59.7]} 8. c3 {[%clk 0:02:32.4]}
8... e6 {[%clk 0:02:56.7]} 9. Bd3 {[%clk 0:02:31.1]} 9... g6 {[%clk 0:02:51.3]}
10. h3 {[%clk 0:02:29.4]} 10... Bf5 {[%clk 0:02:50.2]} 11. O-O {[%clk 0:02:26]}
11... Nc6 {[%clk 0:02:49.9]} 12. Kh1 {[%clk 0:02:22.6]} 12... Be7 {[%clk
0:02:48.7]} 13. Qe2 {[%clk 0:02:16.7]} 13... O-O-O {[%clk 0:02:43.5]} 14. b4
{[%clk 0:02:08.9]} 14... Kb8 {[%clk 0:02:43.1]} 15. a4 {[%clk 0:02:08.8]} 15...
Rc8 {[%clk 0:02:43.7]} 16. a5 {[%clk 0:02:07.8]} 16... Qc7 {[%clk 0:02:28]} 17.
Bd2 {[%clk 0:02:06.9]} 17... Bxd3 {[%clk 0:02:21.4]} 18. Qxd3 {[%clk 0:02:07]}
18... Nd8 {[%clk 0:02:22.3]} 19. Rfb1 {[%clk 0:01:54.6]} 19... Qc4 {[%clk
0:02:21.3]} 20. Qe3 {[%clk 0:01:55]} 20... Qb5 {[%clk 0:02:00.1]} 21. Be1 {[%clk
0:01:53.2]} 21... Nc6 {[%clk 0:01:41.7]} 22. a6 {[%clk 0:01:48.1]} 22... b6
{[%clk 0:01:32.7]} 23. exd6 {[%clk 0:01:32.5]} 23... Bxd6 {[%clk 0:01:33.6]} 24.
Bh4 {[%clk 0:01:32.8]} 24... Rc7 {[%clk 0:01:20.6]} 25. Bf6 {[%clk 0:01:30.6]}
25... Rhc8 {[%clk 0:01:19.1]} 26. Rc1 {[%clk 0:01:29.4]} 26... Ka8 {[%clk
0:01:18.1]} 27. Kh2 {[%clk 0:01:24.1]} 27... Nb8 {[%clk 0:01:15]} 28. Be5 {[%clk
0:01:18.1]} 28... Bxe5 {[%clk 0:01:03.9]} 29. dxe5 {[%clk 0:01:18.3]} 29... Qc4
{[%clk 0:00:34.6]} 30. Nd2 {[%clk 0:01:10.3]} 30... Qb5 {[%clk 0:00:34.9]} 31.
Qf3 {[%clk 0:00:52.2]} 31... Qc6 {[%clk 0:00:11.7]} 32. Rab1 {[%clk 0:00:24]}
32... b5 {[%clk 0:00:08.7]} 33. Nb3 {[%clk 0:00:23.9]} 33... Qxa6 {[%clk
0:00:02.3]} 34. Ra1 {[%clk 0:00:23.5]} 34... Qb6 {[%clk 0:00:02.5]} 35. Qd3
{[%clk 0:00:21]} 35... a6 {[%clk 0:00:02.3]} 36. Nc5 {[%clk 0:00:18.8]} 36...
Rc6 {[%clk 0:00:01.8]} 37. Rc2 {[%clk 0:00:18]} 37... Rxc5 {[%clk 0:00:02]} 38.
bxc5 {[%clk 0:00:18.1]} 38... Rxc5 {[%clk 0:00:02.9]} 39. Qd4 {[%clk 0:00:16]}
39... Kb7 {[%clk 0:00:03.1]} 40. Qb4 {[%clk 0:00:15.7]} 40... Nc6 {[%clk
0:00:02.9]} 41. Qa3 {[%clk 0:00:16.1]} 41... Na7 {[%clk 0:00:02.3]} 42. Rca2
{[%clk 0:00:15.8]} 42... Nc6 {[%clk 0:00:01.7]} 43. Rb2 {[%clk 0:00:11.8]} 43...
h5 {[%clk 0:00:01.7]} 44. Rba2 {[%clk 0:00:09.1]} 44... Nb8 {[%clk 0:00:01.8]}
45. Rb2 {[%clk 0:00:08.5]} 45... Nc6 {[%clk 0:00:02.4]} 46. Rab1 {[%clk
0:00:08.5]} 46... Nb8 {[%clk 0:00:02.5]} 47. Qb3 {[%clk 0:00:08.1]} 47... Nc6
{[%clk 0:00:02.9]} 48. Ra2 {[%clk 0:00:08.5]} 48... Rc4 {[%clk 0:00:03.3]} 49.
Rba1 {[%clk 0:00:08.4]} 49... a5 {[%clk 0:00:03.9]} 50. Rb2 {[%clk 0:00:07.8]}
50... Rxf4 {[%clk 0:00:03.7]} 51. Qd1 {[%clk 0:00:07.3]} 51... Rc4 {[%clk
0:00:03.3]} 52. Qf3 {[%clk 0:00:07]} 52... b4 {[%clk 0:00:03.5]} 53. Qxf7+
{[%clk 0:00:06.9]} 53... Ka6 {[%clk 0:00:03.3]} 54. cxb4 {[%clk 0:00:06.8]}
54... Rxb4 {[%clk 0:00:04.2]} 55. Re2 {[%clk 0:00:06]} 55... Nd4 {[%clk
0:00:03.8]} 56. Rea2 {[%clk 0:00:05]} 56... Nb3 {[%clk 0:00:03]} 57. Rf1 {[%clk
0:00:04.1]} 57... d4 {[%clk 0:00:03.9]} 58. Rf6 {[%clk 0:00:04]} 58... Kb5
{[%clk 0:00:02.8]} 59. Rxe6 {[%clk 0:00:04.2]} 59... Qb8 {[%clk 0:00:02.7]} 60.
Qd7+ {[%clk 0:00:04.1]} 60... Kc4 {[%clk 0:00:03.3]} 61. Rc2+ {[%clk 0:00:03.7]}
61... Kd3 {[%clk 0:00:03.4]} 62. Rf2 {[%clk 0:00:04.5]} 62... Nc5 {[%clk
0:00:02.7]} 63. Qd5 {[%clk 0:00:03.5]} 63... Nxe6 {[%clk 0:00:03]} 64. Rf3+
{[%clk 0:00:04.1]} 64... Kc2 {[%clk 0:00:01.7]} 65. Qe4+ {[%clk 0:00:04]} 65...
d3 {[%clk 0:00:01.6]} 66. Qxd3+ {[%clk 0:00:04]} 66... Kb2 {[%clk 0:00:02.4]}
67. Qa3+ {[%clk 0:00:03.8]} 67... Kc2 {[%clk 0:00:02.6]} 68. Rc3+ {[%clk
0:00:03.8]} 68... Kd2 {[%clk 0:00:03.1]} 69. Qc1+ {[%clk 0:00:04.2]} 69... Ke2
{[%clk 0:00:03.9]} 70. Re3+ {[%clk 0:00:04.5]} 70... Kf2 {[%clk 0:00:04.6]} 71.
Qe1# {[%clk 0:00:05.1]} 1-0

[Event "Late-Titled-Tuesday-Blitz-October-03-2023"]
[Site "Chess.com"]
[Date "2023.10.03"]
[Round "4"]
[White "elmusmolamas"]
[Black "Korchmar_Vasiliy"]
[Result "0-1"]
[WhiteElo "2522"]
[BlackElo "2708"]
[TimeControl "180+1"]
[EndTime "14:39:54 PDT"]
[Termination "Korchmar_Vasiliy won on time"]

1. e4 {[%clk 0:03:00.9]} 1... c5 {[%clk 0:02:59.6]} 2. Nc3 {[%clk 0:02:59.9]}
2... d6 {[%clk 0:02:55.9]} 3. Nge2 {[%clk 0:03:00.8]} 3... Nc6 {[%clk
0:02:54.1]} 4. d4 {[%clk 0:03:00.2]} 4... cxd4 {[%clk 0:02:54]} 5. Nxd4 {[%clk
0:03:01.1]} 5... Nf6 {[%clk 0:02:54.5]} 6. g3 {[%clk 0:03:01.7]} 6... g6 {[%clk
0:02:52.8]} 7. Bg2 {[%clk 0:02:59.7]} 7... Bd7 {[%clk 0:02:53.2]} 8. Nde2 {[%clk
0:03:00.3]} 8... Bg7 {[%clk 0:02:40.5]} 9. O-O {[%clk 0:03:00.4]} 9... Qc8
{[%clk 0:02:40.4]} 10. Bg5 {[%clk 0:02:54.8]} 10... h6 {[%clk 0:02:38]} 11. Be3
{[%clk 0:02:54.2]} 11... Bh3 {[%clk 0:02:36.6]} 12. Qd2 {[%clk 0:02:54.6]} 12...
Ne5 {[%clk 0:02:28.7]} 13. b3 {[%clk 0:02:48.6]} 13... Bxg2 {[%clk 0:02:11.7]}
14. Kxg2 {[%clk 0:02:49.5]} 14... h5 {[%clk 0:02:12.3]} 15. h4 {[%clk
0:02:45.9]} 15... Nfg4 {[%clk 0:02:04.6]} 16. Bd4 {[%clk 0:02:43.1]} 16... O-O
{[%clk 0:01:26.5]} 17. Nd5 {[%clk 0:02:26.3]} 17... Re8 {[%clk 0:01:26.3]} 18.
f3 {[%clk 0:02:12.1]} 18... Nf6 {[%clk 0:01:12.7]} 19. c4 {[%clk 0:02:05.5]}
19... e6 {[%clk 0:00:58.7]} 20. Nxf6+ {[%clk 0:02:04.3]} 20... Bxf6 {[%clk
0:00:58.8]} 21. Qc3 {[%clk 0:01:23.3]} 21... Kg7 {[%clk 0:00:48]} 22. Nf4 {[%clk
0:01:18.6]} 22... Qc6 {[%clk 0:00:44.8]} 23. Nd3 {[%clk 0:01:15.7]} 23... Nd7
{[%clk 0:00:38]} 24. Bxf6+ {[%clk 0:01:09]} 24... Nxf6 {[%clk 0:00:38.9]} 25.
Rac1 {[%clk 0:01:09.1]} 25... Rac8 {[%clk 0:00:36.6]} 26. Qb2 {[%clk 0:01:03]}
26... a6 {[%clk 0:00:33.3]} 27. Nf4 {[%clk 0:00:59.3]} 27... Qc5 {[%clk
0:00:28.1]} 28. Rfd1 {[%clk 0:00:57.4]} 28... Red8 {[%clk 0:00:27.2]} 29. Nh3
{[%clk 0:00:40.6]} 29... Rc7 {[%clk 0:00:16.2]} 30. Ng5 {[%clk 0:00:40.9]} 30...
e5 {[%clk 0:00:14.3]} 31. Qf2 {[%clk 0:00:27]} 31... Qa3 {[%clk 0:00:12.4]} 32.
Rc2 {[%clk 0:00:23.9]} 32... Rdc8 {[%clk 0:00:10.5]} 33. Rcd2 {[%clk 0:00:23.1]}
33... b5 {[%clk 0:00:10.1]} 34. cxb5 {[%clk 0:00:21.1]} 34... axb5 {[%clk
0:00:10.6]} 35. Rxd6 {[%clk 0:00:21.7]} 35... Rc2 {[%clk 0:00:09.6]} 36. R1d2
{[%clk 0:00:20.4]} 36... Qxa2 {[%clk 0:00:09.3]} 37. Kh3 {[%clk 0:00:16.2]}
37... Qxb3 {[%clk 0:00:09.1]} 38. Qa7 {[%clk 0:00:15]} 38... Rxd2 {[%clk
0:00:08]} 39. Rxd2 {[%clk 0:00:13.6]} 39... Rc1 {[%clk 0:00:08.3]} 40. Kg2
{[%clk 0:00:10.9]} 40... Rc2 {[%clk 0:00:07.7]} 41. Rxc2 {[%clk 0:00:10.1]}
41... Qxc2+ {[%clk 0:00:08.6]} 42. Kh3 {[%clk 0:00:10.6]} 42... Qc4 {[%clk
0:00:09.1]} 43. Qb7 {[%clk 0:00:06.9]} 43... b4 {[%clk 0:00:09.1]} 44. Kg2
{[%clk 0:00:07.4]} 44... b3 {[%clk 0:00:09.5]} 45. Kh3 {[%clk 0:00:07.6]} 45...
Qf1+ {[%clk 0:00:09.7]} 46. Kh2 {[%clk 0:00:07.8]} 46... Qe2+ {[%clk 0:00:09.8]}
47. Kh3 {[%clk 0:00:08.2]} 47... Qc4 {[%clk 0:00:10.4]} 48. Kh2 {[%clk
0:00:08.3]} 48... Ne8 {[%clk 0:00:08.4]} 49. Qe7 {[%clk 0:00:05.7]} 49... b2
{[%clk 0:00:05.6]} 50. Qb7 {[%clk 0:00:06.3]} 50... Qe2+ {[%clk 0:00:05.3]} 51.
Kh3 {[%clk 0:00:06.2]} 51... Qf1+ {[%clk 0:00:05.8]} 52. Kh2 {[%clk 0:00:06.5]}
52... Qe2+ {[%clk 0:00:05.4]} 53. Kh3 {[%clk 0:00:07.1]} 53... Nd6 {[%clk
0:00:06.1]} 54. Ne6+ {[%clk 0:00:05.2]} 54... Kf6 {[%clk 0:00:05.2]} 55. Qd7
{[%clk 0:00:04.9]} 55... Qf1+ {[%clk 0:00:05]} 56. Kh2 {[%clk 0:00:04.9]} 56...
Qe2+ {[%clk 0:00:04.9]} 57. Kh3 {[%clk 0:00:05.5]} 57... fxe6 {[%clk 0:00:05]}
58. Qd8+ {[%clk 0:00:04.7]} 58... Kg7 {[%clk 0:00:04.5]} 59. Qxd6 {[%clk
0:00:04]} 59... Qf1+ {[%clk 0:00:04.7]} 60. Kh2 {[%clk 0:00:03.8]} 60... Qf2+
{[%clk 0:00:04.8]} 61. Kh3 {[%clk 0:00:04.5]} 61... Qxf3 {[%clk 0:00:05.7]} 62.
Qxe5+ {[%clk 0:00:03.4]} 62... Qf6 {[%clk 0:00:06]} 63. Qc7+ {[%clk 0:00:04.2]}
63... Kh6 {[%clk 0:00:04.5]} 64. Qc2 {[%clk 0:00:02]} 64... Qf1+ {[%clk
0:00:04.5]} 65. Kh2 {[%clk 0:00:01.9]} 65... b1=Q {[%clk 0:00:04.8]} 66. Qd2+
{[%clk 0:00:02.8]} 66... Kg7 {[%clk 0:00:03.8]} 67. Qd7+ {[%clk 0:00:03.4]}
67... Qf7 {[%clk 0:00:03.7]} 68. Qd4+ {[%clk 0:00:04.1]} 68... Kh7 {[%clk
0:00:04]} 69. Qe3 {[%clk 0:00:03.6]} 69... Qc2+ {[%clk 0:00:04.1]} 70. Kh3
{[%clk 0:00:03.8]} 70... Qcf2 {[%clk 0:00:04.8]} 0-1

[Event "Late-Titled-Tuesday-Blitz-October-03-2023"]
[Site "Chess.com"]
[Date "2023.10.03"]
[Round "4"]
[White "SaqoChess_Twitch"]
[Black "jup1978"]
[Result "1-0"]
[WhiteElo "2638"]
[BlackElo "2507"]
[TimeControl "180+1"]
[EndTime "14:40:14 PDT"]
[Termination "SaqoChess_Twitch won by resignation"]

1. d4 {[%clk 0:03:00.9]} 1... d5 {[%clk 0:02:59.3]} 2. c4 {[%clk 0:03:01.3]}
2... c6 {[%clk 0:02:59.5]} 3. Nc3 {[%clk 0:03:01.8]} 3... Nf6 {[%clk 0:02:59.1]}
4. e3 {[%clk 0:03:02.5]} 4... a6 {[%clk 0:02:59.2]} 5. Nf3 {[%clk 0:03:02.6]}
5... Bf5 {[%clk 0:02:58.7]} 6. Bd3 {[%clk 0:03:01.9]} 6... Bxd3 {[%clk
0:02:58.9]} 7. Qxd3 {[%clk 0:03:02.8]} 7... e6 {[%clk 0:02:59.5]} 8. O-O {[%clk
0:03:02.9]} 8... c5 {[%clk 0:03:00.1]} 9. cxd5 {[%clk 0:03:01.9]} 9... exd5
{[%clk 0:02:58.5]} 10. dxc5 {[%clk 0:03:01.7]} 10... Bxc5 {[%clk 0:02:57.8]} 11.
Rd1 {[%clk 0:03:02.3]} 11... Nc6 {[%clk 0:02:47.6]} 12. Nxd5 {[%clk 0:03:01.8]}
12... Nxd5 {[%clk 0:02:42.1]} 13. Qxd5 {[%clk 0:03:02.7]} 13... Qxd5 {[%clk
0:02:41.9]} 14. Rxd5 {[%clk 0:03:03.6]} 14... Be7 {[%clk 0:02:41.4]} 15. Bd2
{[%clk 0:03:02.3]} 15... O-O {[%clk 0:02:39]} 16. Bc3 {[%clk 0:03:02.6]} 16...
Rfd8 {[%clk 0:02:39.1]} 17. Rad1 {[%clk 0:03:02.8]} 17... Rxd5 {[%clk
0:02:38.7]} 18. Rxd5 {[%clk 0:03:03.7]} 18... Rd8 {[%clk 0:02:38.3]} 19. Rxd8+
{[%clk 0:03:03.3]} 19... Bxd8 {[%clk 0:02:39.2]} 20. Nd4 {[%clk 0:03:02.1]}
20... Nxd4 {[%clk 0:02:38.9]} 21. Bxd4 {[%clk 0:03:03]} 21... f6 {[%clk
0:02:38.6]} 22. Kf1 {[%clk 0:03:03.6]} 22... Kf7 {[%clk 0:02:39.2]} 23. Ke2
{[%clk 0:03:04.3]} 23... Ke6 {[%clk 0:02:39.8]} 24. Kd3 {[%clk 0:03:04.9]} 24...
g6 {[%clk 0:02:39.7]} 25. e4 {[%clk 0:03:05.3]} 25... f5 {[%clk 0:02:39.5]} 26.
exf5+ {[%clk 0:03:03.7]} 26... gxf5 {[%clk 0:02:39.2]} 27. Kc4 {[%clk 0:03:03]}
27... Be7 {[%clk 0:02:37.4]} 28. a4 {[%clk 0:03:01.8]} 28... Bd6 {[%clk
0:02:37.2]} 29. b4 {[%clk 0:02:59]} 29... Be7 {[%clk 0:02:29.6]} 30. b5 {[%clk
0:02:58.8]} 30... axb5+ {[%clk 0:02:26.2]} 31. Kxb5 {[%clk 0:02:58.6]} 31... Kd7
{[%clk 0:02:26.3]} 32. Bc5 {[%clk 0:02:54.3]} 32... Bf6 {[%clk 0:02:22.7]} 33.
Kb6 {[%clk 0:02:46.3]} 33... Kc8 {[%clk 0:02:21.2]} 34. h3 {[%clk 0:02:46.8]}
34... Bd8+ {[%clk 0:02:18.3]} 35. Kb5 {[%clk 0:02:46.7]} 35... Kd7 {[%clk
0:02:18.7]} 36. Bb6 {[%clk 0:02:45.5]} 36... Be7 {[%clk 0:02:18.6]} 37. Bd4
{[%clk 0:02:45.4]} 37... Bd6 {[%clk 0:02:15.3]} 38. Kb6 {[%clk 0:02:42.9]} 38...
Kc8 {[%clk 0:02:15.2]} 39. f3 {[%clk 0:02:41]} 39... Be7 {[%clk 0:02:14.2]} 40.
g4 {[%clk 0:02:39]} 40... fxg4 {[%clk 0:02:13.1]} 41. hxg4 {[%clk 0:02:38.8]}
41... Bd6 {[%clk 0:02:12.4]} 42. Be3 {[%clk 0:02:38]} 42... Bc7+ {[%clk
0:02:08.7]} 43. Kc5 {[%clk 0:02:38.1]} 43... Kd7 {[%clk 0:02:09.1]} 44. Kd5
{[%clk 0:02:38.5]} 44... Ke7 {[%clk 0:02:06.7]} 45. f4 {[%clk 0:02:35.1]} 45...
Kf6 {[%clk 0:02:00.3]} 46. Ke4 {[%clk 0:02:33.7]} 46... Bd6 {[%clk 0:01:55.6]}
47. f5 {[%clk 0:02:33.3]} 47... Bc7 {[%clk 0:01:55.1]} 48. g5+ {[%clk
0:02:32.8]} 48... Kf7 {[%clk 0:01:55.2]} 49. Bf4 {[%clk 0:02:30.7]} 49... Bd8
{[%clk 0:01:51.9]} 50. Kd5 {[%clk 0:02:24.3]} 50... Be7 {[%clk 0:01:51]} 51. Be3
{[%clk 0:02:19.6]} 51... Bb4 {[%clk 0:01:45.9]} 52. Kc4 {[%clk 0:02:12.8]} 52...
Bd6 {[%clk 0:01:45.8]} 53. Kb5 {[%clk 0:02:10.7]} 53... Bc7 {[%clk 0:01:45.2]}
54. Bb6 {[%clk 0:02:09.8]} 54... Bf4 {[%clk 0:01:45]} 55. Bd8 {[%clk 0:02:04.5]}
55... Ke8 {[%clk 0:01:44.5]} 56. Bf6 {[%clk 0:01:37.6]} 56... Be3 {[%clk
0:01:39.6]} 57. g6 {[%clk 0:01:28.5]} 57... hxg6 {[%clk 0:01:38.4]} 58. fxg6
{[%clk 0:01:29.4]} 58... Kf8 {[%clk 0:01:35.9]} 59. Kc4 {[%clk 0:01:29.7]} 59...
Bf2 {[%clk 0:01:32]} 60. Kd5 {[%clk 0:01:30.2]} 60... Bg3 {[%clk 0:01:27.3]} 61.
Ke6 {[%clk 0:01:30.3]} 61... Bf2 {[%clk 0:01:16.5]} 62. Kd7 {[%clk 0:01:30.3]}
62... Bc5 {[%clk 0:01:13.8]} 63. Kc7 {[%clk 0:01:29.7]} 63... b6 {[%clk
0:01:14]} 64. Kc6 {[%clk 0:01:29.7]} 64... Be3 {[%clk 0:01:13.9]} 65. Kb5 {[%clk
0:01:29.3]} 65... Bf2 {[%clk 0:01:12.9]} 66. Kc4 {[%clk 0:01:12.6]} 66... Be1
{[%clk 0:01:12.9]} 67. Bd4 {[%clk 0:01:09.5]} 67... Kg8 {[%clk 0:01:11.9]} 68.
Kd5 {[%clk 0:01:05]} 68... Bd2 {[%clk 0:01:05.6]} 69. Ke6 {[%clk 0:01:04.9]}
69... Ba5 {[%clk 0:01:03.9]} 70. Kf5 {[%clk 0:01:03]} 70... Kf8 {[%clk
0:01:03.5]} 71. Kg4 {[%clk 0:00:55.6]} 71... Kg8 {[%clk 0:01:02.8]} 72. Kh5
{[%clk 0:00:55.9]} 72... Kf8 {[%clk 0:01:01.9]} 73. Be3 {[%clk 0:00:46.2]} 73...
Kg7 {[%clk 0:00:59.8]} 74. Kg5 {[%clk 0:00:46.6]} 74... Kg8 {[%clk 0:00:56.4]}
75. Kh6 {[%clk 0:00:46.9]} 75... Kh8 {[%clk 0:00:50.2]} 76. Bd4+ {[%clk
0:00:19.4]} 76... Kg8 {[%clk 0:00:50.3]} 77. g7 {[%clk 0:00:19.1]} 77... Bd2+
{[%clk 0:00:46.9]} 78. Kh5 {[%clk 0:00:17.3]} 78... Bb4 {[%clk 0:00:43.6]} 79.
Kg6 {[%clk 0:00:17.2]} 79... Ba5 {[%clk 0:00:35.3]} 80. Be3 {[%clk 0:00:14.5]}
80... Bc3 {[%clk 0:00:12]} 81. Bxb6 {[%clk 0:00:14.1]} 81... Bxg7 {[%clk
0:00:12.5]} 82. a5 {[%clk 0:00:14.6]} 82... Be5 {[%clk 0:00:13.1]} 83. Kf5
{[%clk 0:00:15.3]} 83... Bb8 {[%clk 0:00:11.9]} 84. Ke6 {[%clk 0:00:15.8]} 84...
Kf8 {[%clk 0:00:12.5]} 85. Kd7 {[%clk 0:00:15.4]} 85... Kf7 {[%clk 0:00:11.7]}
86. a6 {[%clk 0:00:15]} 86... Kf8 {[%clk 0:00:10.7]} 87. Kc8 {[%clk 0:00:15.2]}
87... Ba7 {[%clk 0:00:09.8]} 88. Bxa7 {[%clk 0:00:15.2]} 1-0

[Event "Late-Titled-Tuesday-Blitz-October-03-2023"]
[Site "Chess.com"]
[Date "2023.10.03"]
[Round "4"]
[White "Angry_Twin"]
[Black "Polish_fighter3000"]
[Result "1-0"]
[WhiteElo "2938"]
[BlackElo "3067"]
[TimeControl "180+1"]
[EndTime "14:40:29 PDT"]
[Termination "Angry_Twin won by checkmate"]

1. e4 {[%clk 0:02:51.9]} 1... c5 {[%clk 0:02:59.8]} 2. Nf3 {[%clk 0:02:51.6]}
2... e6 {[%clk 0:02:59.7]} 3. d4 {[%clk 0:02:50.5]} 3... cxd4 {[%clk 0:03:00.6]}
4. Nxd4 {[%clk 0:02:51.3]} 4... a6 {[%clk 0:03:00.7]} 5. c4 {[%clk 0:02:51.2]}
5... Nf6 {[%clk 0:02:58.8]} 6. Nc3 {[%clk 0:02:51.3]} 6... Qc7 {[%clk 0:02:58]}
7. a3 {[%clk 0:02:51.1]} 7... b6 {[%clk 0:02:57.1]} 8. Be2 {[%clk 0:02:51.2]}
8... Bb7 {[%clk 0:02:57.1]} 9. f3 {[%clk 0:02:51.8]} 9... Nc6 {[%clk 0:02:53.5]}
10. Be3 {[%clk 0:02:51.9]} 10... Bc5 {[%clk 0:02:26.2]} 11. Qd2 {[%clk
0:02:51.6]} 11... O-O {[%clk 0:02:24.5]} 12. O-O {[%clk 0:02:47.4]} 12... Qd6
{[%clk 0:02:03.3]} 13. Rfd1 {[%clk 0:02:39]} 13... e5 {[%clk 0:02:01.5]} 14. Nf5
{[%clk 0:02:31.1]} 14... Qxd2 {[%clk 0:01:57.1]} 15. Rxd2 {[%clk 0:02:32]} 15...
Rab8 {[%clk 0:01:43.7]} 16. Kf2 {[%clk 0:01:57.9]} 16... g6 {[%clk 0:00:52.7]}
17. Nd6 {[%clk 0:01:35.2]} 17... Bxe3+ {[%clk 0:00:48.5]} 18. Kxe3 {[%clk
0:01:36.1]} 18... Nd4 {[%clk 0:00:49]} 19. Rad1 {[%clk 0:01:32.6]} 19... Ne8
{[%clk 0:00:49.4]} 20. Nxb7 {[%clk 0:01:31]} 20... Rxb7 {[%clk 0:00:49.5]} 21.
Bf1 {[%clk 0:01:27.5]} 21... d6 {[%clk 0:00:46.5]} 22. Ne2 {[%clk 0:01:19]}
22... Nb3 {[%clk 0:00:44.8]} 23. Rd5 {[%clk 0:01:17.5]} 23... Kg7 {[%clk
0:00:39.7]} 24. g3 {[%clk 0:01:15.7]} 24... f6 {[%clk 0:00:36.5]} 25. Nc3 {[%clk
0:01:12.2]} 25... Kf7 {[%clk 0:00:35.5]} 26. f4 {[%clk 0:01:10]} 26... Ke7
{[%clk 0:00:34.9]} 27. R5d3 {[%clk 0:01:06.1]} 27... Nd4 {[%clk 0:00:33.2]} 28.
Nd5+ {[%clk 0:01:05.7]} 28... Kd8 {[%clk 0:00:32.7]} 29. Bh3 {[%clk 0:01:02.4]}
29... Nc7 {[%clk 0:00:32.2]} 30. Nc3 {[%clk 0:01:00]} 30... Ke7 {[%clk
0:00:31.8]} 31. Ne2 {[%clk 0:00:57.4]} 31... Nxe2 {[%clk 0:00:31.3]} 32. Kxe2
{[%clk 0:00:55.9]} 32... Rd8 {[%clk 0:00:31.2]} 33. Ke3 {[%clk 0:00:55.3]} 33...
a5 {[%clk 0:00:31.2]} 34. Ke2 {[%clk 0:00:39.7]} 34... Na6 {[%clk 0:00:29.7]}
35. fxe5 {[%clk 0:00:40.1]} 35... fxe5 {[%clk 0:00:29.1]} 36. Rf1 {[%clk
0:00:40.8]} 36... Re8 {[%clk 0:00:07.9]} 37. Rdf3 {[%clk 0:00:28.2]} 37... Rc7
{[%clk 0:00:05]} 38. Rf7+ {[%clk 0:00:26.7]} 38... Kd8 {[%clk 0:00:05.4]} 39.
R1f6 {[%clk 0:00:21.1]} 39... Rxf7 {[%clk 0:00:03.5]} 40. Rxf7 {[%clk
0:00:21.5]} 40... Re7 {[%clk 0:00:04.1]} 41. Rf8+ {[%clk 0:00:19.7]} 41... Re8
{[%clk 0:00:04.1]} 42. Rf6 {[%clk 0:00:12.5]} 42... Ke7 {[%clk 0:00:03.1]} 43.
Re6+ {[%clk 0:00:12.7]} 43... Kd7 {[%clk 0:00:03.3]} 44. Rxg6+ {[%clk
0:00:12.6]} 44... Kc6 {[%clk 0:00:03.3]} 45. Rg7 {[%clk 0:00:13.1]} 45... Nc5
{[%clk 0:00:03.3]} 46. Rxh7 {[%clk 0:00:11.8]} 46... a4 {[%clk 0:00:03.3]} 47.
Bf5 {[%clk 0:00:11.6]} 47... Rg8 {[%clk 0:00:03.2]} 48. g4 {[%clk 0:00:11.2]}
48... b5 {[%clk 0:00:03.7]} 49. cxb5+ {[%clk 0:00:11.2]} 49... Kxb5 {[%clk
0:00:04.6]} 50. h4 {[%clk 0:00:11.9]} 50... Kc4 {[%clk 0:00:05.2]} 51. g5 {[%clk
0:00:10.6]} 51... Kd4 {[%clk 0:00:04.6]} 52. g6 {[%clk 0:00:06]} 52... Nxe4
{[%clk 0:00:03.4]} 53. Bxe4 {[%clk 0:00:06.2]} 53... Kxe4 {[%clk 0:00:04.3]} 54.
h5 {[%clk 0:00:07]} 54... Kf5 {[%clk 0:00:02.7]} 55. g7 {[%clk 0:00:07.4]} 55...
d5 {[%clk 0:00:02.7]} 56. h6 {[%clk 0:00:07.9]} 56... Kg6 {[%clk 0:00:02.6]} 57.
Rh8 {[%clk 0:00:08.5]} 57... Kf7 {[%clk 0:00:02.8]} 58. h7 {[%clk 0:00:06.8]}
58... Rxg7 {[%clk 0:00:03.3]} 59. Rf8+ {[%clk 0:00:07.4]} 59... Kxf8 {[%clk
0:00:04]} 60. h8=Q+ {[%clk 0:00:08.3]} 60... Kf7 {[%clk 0:00:04.6]} 61. Qh5+
{[%clk 0:00:08.7]} 61... Kf6 {[%clk 0:00:05]} 62. Qh6+ {[%clk 0:00:09.4]} 62...
Rg6 {[%clk 0:00:05.1]} 63. Qf8+ {[%clk 0:00:09.9]} 63... Kg5 {[%clk 0:00:04.9]}
64. Qe7+ {[%clk 0:00:10]} 64... Kf5 {[%clk 0:00:04.7]} 65. Qf7+ {[%clk
0:00:09.7]} 65... Rf6 {[%clk 0:00:05]} 66. Qxd5 {[%clk 0:00:10.2]} 66... Rb6
{[%clk 0:00:05.3]} 67. Qd7+ {[%clk 0:00:09.7]} 67... Kf4 {[%clk 0:00:04.9]} 68.
Qd2+ {[%clk 0:00:09.9]} 68... Kf5 {[%clk 0:00:05]} 69. Qd3+ {[%clk 0:00:10.5]}
69... Kf6 {[%clk 0:00:04.8]} 70. Qf3+ {[%clk 0:00:10.9]} 70... Ke6 {[%clk
0:00:04.6]} 71. Qg4+ {[%clk 0:00:11.5]} 71... Kd5 {[%clk 0:00:04.7]} 72. Qd7+
{[%clk 0:00:11.5]} 72... Kc5 {[%clk 0:00:04.8]} 73. Qxa4 {[%clk 0:00:06.3]}
73... Rxb2+ {[%clk 0:00:04.5]} 74. Ke3 {[%clk 0:00:06.9]} 74... Rb5 {[%clk
0:00:04.8]} 75. Ke4 {[%clk 0:00:06.5]} 75... Kb6 {[%clk 0:00:05]} 76. Qc4 {[%clk
0:00:06.2]} 76... Rc5 {[%clk 0:00:05.5]} 77. Qb4+ {[%clk 0:00:06.2]} 77... Rb5
{[%clk 0:00:06.1]} 78. Qd6+ {[%clk 0:00:06.3]} 78... Ka5 {[%clk 0:00:06.6]} 79.
Kd3 {[%clk 0:00:05.4]} 79... Rb1 {[%clk 0:00:03.1]} 80. Kc2 {[%clk 0:00:04.5]}
80... Rb5 {[%clk 0:00:02.9]} 81. Kc3 {[%clk 0:00:04.4]} 81... Rb1 {[%clk
0:00:03.1]} 82. Qxe5+ {[%clk 0:00:04.5]} 82... Rb5 {[%clk 0:00:02.2]} 83. Qd4
{[%clk 0:00:04.1]} 83... Rb6 {[%clk 0:00:02.2]} 84. Qc5+ {[%clk 0:00:04]} 84...
Ka6 {[%clk 0:00:02.1]} 85. Kc4 {[%clk 0:00:04.7]} 85... Rb7 {[%clk 0:00:01.9]}
86. Qc6+ {[%clk 0:00:04.8]} 86... Rb6 {[%clk 0:00:02.1]} 87. Qa8# {[%clk
0:00:04.9]} 1-0